Cogmind - Beta 11 X5 @@@ ROGUE MODE // 2021.06.16 @ 18:28:14 Player: rusmal Result: Destroyed by D-53 Grenadier with Mini Grenade Launcher Performance ------------- Evolutions (0) 0 Regions Visited (2) 400 Robots Destroyed (20) 100 Value Destroyed (367) 367 Prototype IDs (0) 0 Alien Tech Used (0) 0 Bonus (0) 0 TOTAL SCORE: 867 Bonus ------- None Cogmind --------- Core Integrity 0/250 Matter 218/300 Energy 40/250 System Corruption 3% Temperature Cool (39) Movement Treading (160) Location -10/Mines Parts ------- > --- POWER (1) -------- Ion Engine > --- PROPULSION (2) --- Light Treads Light Treads > --- UTILITY (2) ------ Heat Sink Large Storage Unit > --- WEAPON (2) ------- Spread Laser Spread Laser > --- INVENTORY (15) --- Heat Sink Targeting Computer Propulsion Shielding Propulsion Shielding EM Pulse Gun EM Pulse Gun EM Pulse Gun EM Pulse Gun Spread Laser Spread Laser Slug Cannon Peak State ------------ > --- POWER ------------ Ion Engine > --- PROPULSION ------- Aluminum Leg Aluminum Leg > --- UTILITY ---------- Heat Sink Large Storage Unit > --- WEAPON ----------- Slug Cannon Grenade Launcher > --- INVENTORY -------- Ion Engine Light Treads Light Treads Heat Sink Targeting Computer Propulsion Shielding Propulsion Shielding EM Pulse Gun EM Pulse Gun EM Pulse Gun EM Pulse Gun Spread Laser Spread Laser Spread Laser Spread Laser [Rating: 11] Favorites ----------- Power Ion Engine Engine Ion Engine Propulsion Aluminum Leg Treads Light Treads Leg Aluminum Leg Utility Heat Sink Device Heat Sink Storage Large Storage Unit Weapon Spread Laser Energy Gun Spread Laser Ballistic Gun Assault Rifle Ballistic Cannon Slug Cannon Launcher Grenade Launcher Build | -11 -10 -10 ------- Run | Scr Mat Min Slots Evolved . | . . . Power . | . . . Propulsion . | . . . Utility . | . . . Weapon . | . . . Parts Attached 28 | 6 13 9 Power 4 | 1 2 1 Engine 4 | 1 2 1 Core . | . . . Reactor . | . . . Propulsion 6 | 2 2 2 Treads 2 | . . 2 Leg 4 | 2 2 . Wheel . | . . . Hover . | . . . Flight . | . . . Utility 7 | 1 6 . Device 2 | . 2 . Storage 5 | 1 4 . Processor . | . . . Hackware . | . . . Protection . | . . . Artifact . | . . . Weapon 11 | 2 3 6 Energy Gun 7 | 1 2 4 Energy Cannon . | . . . Ballistic Gun 2 | 1 1 . Ballistic Cannon 1 | . . 1 Launcher 1 | . . 1 Special Weapon . | . . . Impact Weapon . | . . . Slashing Weapon . | . . . Piercing Weapon . | . . . Special Melee Weapon . | . . . Unidentified Prototypes . | . . . Parts Lost 4 | . . 4 Power 1 | . . 1 Propulsion 2 | . . 2 Utility . | . . . Weapon 1 | . . 1 Highest Loss Streak 4 | . . 4 Average Slot Usage (%) 98 | . 98 98 Engine 14 | . 14 14 Leg 27 | . 28 26 Device 13 | . 13 14 Storage 14 | . 14 14 Energy Gun 20 | . 23 5 Ballistic Gun 3 | . 4 . Ballistic Cannon 1 | . . 8 Launcher 1 | . . 11 Naked Turns . | . . . Heaviest Build 36 | 14 32 36 Greatest Support 20 | 20 20 20 Greatest Overweight (x) 1 | . 1 1 Average Overweight (x) . | . . 1 Largest Inventory Capacity 15 | 8 15 15 Average Capacity 13 | 6 12 15 Most Carried 15 | 6 15 15 Average Carried 10 | 2 9 14 Final Capacity 15 | 8 15 15 Final Carried 13 | 6 13 11 Class Distribution -------------------- 72% | Mutant 27% | Scavenger-Mutant Dominant Class ---------------- Mutant | -10/Materials Scavenger-Mutant | -10/Mines Resources | -11 -10 -10 ----------- Run | Scr Mat Min Matter Collected 504 | 187 291 26 Remotely . | . . . Salvage Created 404 | . 404 . Parts 37 | . 37 . Haulers Intercepted 1 | . 1 . Recyclers Shooed . | . . . Parts Field Recycled . | . . . Retrieved Matter . | . . . Parts Self-Destructed . | . . . Prevented . | . . . Kills | -11 -10 -10 ------- Run | Scr Mat Min Combat Hostiles Destroyed 16 | . 16 . Guns 16 | . 16 . Classes Destroyed 5 | . 5 . Builder 1 | . 1 . Hauler 1 | . 1 . Operator 2 | . 2 . Swarmer 9 | . 9 . Grunt 7 | . 7 . Best Kill Streak 4 | . 4 . Combat Bots Only 4 | . 4 . Max Kills in Single Turn 2 | . 2 . Gunslinging . | . . . Exploded . | . . . Melee . | . . . Uniques/NPCs Destroyed . | . . . Combat | -11 -10 -10 -------- Run | Scr Mat Min Damage Taken 1195 | . 511 684 Core 253 | . 92 161 Absorbed by Shields . | . . . Core Remaining (%) 100 | 100 . . Volleys Fired 49 | . 44 5 Largest 2 | . 2 2 Hottest 130 | . 130 130 Shots Fired 94 | . 88 6 Gun 90 | . 88 2 Cannon 4 | . . 4 Launcher . | . . . Special . | . . . Kinetic 48 | . 44 4 Thermal 46 | . 44 2 Explosive . | . . . Electromagnetic . | . . . Robot Hit Streak 9 | . 9 8 Robot Miss Streak 10 | . 10 2 Penetration Max . | . . . Secondary Targets 1 | . 1 . Max Gunslinging Chain 1 | . 1 . Shots Hit Robots 69 | . 64 5 Core Hits 57 | . 52 5 Critical Kills . | . . . Critical Parts Destroyed . | . . . Critical Strikes . | . . . Melee Attacks . | . . . Impact . | . . . Slashing . | . . . Piercing . | . . . Sneak Attacks . | . . . Combat Hostiles . | . . . Follow-up Attacks . | . . . Damage Inflicted 750 | . 644 106 Guns 683 | . 644 39 Cannons 67 | . . 67 Explosions . | . . . Melee . | . . . Ramming . | . . . Kinetic 343 | . 276 67 Thermal 407 | . 368 39 Explosive . | . . . Electromagnetic . | . . . Impact . | . . . Slashing . | . . . Piercing . | . . . Highest Corruption 3 | . 3 3 Average Corruption 2 | . 2 3 Corruption Purged . | . . . Effects 3 | . . 3 Matter Fused 2 | . . 2 Heat Flow Errors 1 | . . 1 Overload Shots . | . . . Overflow Damage . | . . . Projectiles . | . . . Explosions . | . . . Melee . | . . . Knockbacks . | . . . Impact . | . . . Kinetic . | . . . Secondary . | . . . Self-Inflicted Damage . | . . . Shots . | . . . Rammed . | . . . Targets Rammed . | . . . Kicked . | . . . Crushed . | . . . Highest Temperature 117 | . 117 98 Average Temperature 39 | . 39 42 Received Heat Transfer 90 | . 90 . Siege Activations . | . . . Robots Corrupted . | . . . Combat Hostiles . | . . . Parts Fried . | . . . Impact Corruptions . | . . . Robots Melted . | . . . Combat Hostiles . | . . . Parts Melted . | . . . Heat Transferred 515 | . 470 45 Parts Sabotaged . | . . . Parts Stolen . | . . . Parts Stripped . | . . . Power Chain Reactions . | . . . Missiles Intercepted . | . . . Alert | -11 -10 -10 ------- Run | Scr Mat Min Peak Influence 215 | . 215 39 Initial 39 | . . 39 Average 77 | . 88 36 Maximum Alert Level 1 | . 1 . Low Security (%) 88 | 100 85 100 Level 1 11 | . 14 . Level 2 . | . . . Level 3 . | . . . Level 4 . | . . . Level 5 . | . . . High Security . | . . . Max Security . | . . . Squads Dispatched 4 | . 4 . Investigation . | . . . Extermination . | . . . Reinforcement 4 | . 4 . Assault . | . . . Garrison . | . . . Intercept . | . . . Construction Impeded . | . . . Haulers Reinforced . | . . . Cargo Convoy Interrupts . | . . . Stealth | -11 -10 -10 --------- Run | Scr Mat Min Distress Signals 5 | . 5 . Communications Jammed . | . . . Distress Signals . | . . . Times Spotted 45 | . 39 6 Peak Tracking Total 4 | . 4 4 Tactical Retreats 4 | . 4 . Traps | -11 -10 -10 ------- Run | Scr Mat Min Traps Triggered 3 | . 3 . Indirectly . | . . . Trap Hack Attempts . | . . . Triggered . | . . . Disarmed . | . . . Reprogrammed . | . . . Reused . | . . . Traps Extracted . | . . . Installed . | . . . Triggered . | . . . Machines | -11 -10 -10 ---------- Run | Scr Mat Min Machines Disabled . | . . . Max in Single Turn . | . . . Machines Sabotaged . | . . . Garrisons Compromised . | . . . Overloaded Fab Kills . | . . . Fab Network Shutdowns . | . . . Hacking | -11 -10 -10 --------- Run | Scr Mat Min Machines Accessed 6 | . 6 . Terminals 4 | . 4 . Fabricators . | . . . Repair Stations . | . . . Recycling Units 2 | . 2 . Scanalyzers . | . . . Garrison Access . | . . . Total Hacks 15 | . 15 . Successful 5 | . 5 . Failed 10 | . 10 . Catastrophic 1 | . 1 . Database Lockouts . | . . . Manual 9 | . 9 . Terminals 12 | . 12 . Fabricators . | . . . Repair Stations . | . . . Recycling Units 3 | . 3 . Scanalyzers . | . . . Garrison Access . | . . . Terminal Hacks 2 | . 2 . Unreport Threat 1 | . 1 . Hauler Manifests 1 | . 1 . Fabricator Hacks . | . . . Repair Station Hacks . | . . . Recycling Unit Hacks 3 | . 3 . Report Inventory 2 | . 2 . Retrieve Components 1 | . 1 . Scanalyzer . | . . . Garrison Access Hacks . | . . . Unauthorized Hacks . | . . . Terminals . | . . . Fabricators . | . . . Repair Stations . | . . . Recycling Units . | . . . Scanalyzers . | . . . Garrison Access . | . . . Data Cores Recovered . | . . . Used . | . . . Hacking Detections 3 | . 3 . Full Trace Events . | . . . Feedback Events . | . . . Feedback Blocked . | . . . Robot Schematics Acquired . | . . . Robots Built . | . . . Matter . | . . . Time . | . . . Total Robot Build Rating . | . . . Part Schematics Acquired . | . . . Parts Built . | . . . Matter . | . . . Time . | . . . Total Part Build Rating . | . . . Parts Repaired . | . . . Time . | . . . Parts Recycled . | . . . Recycled Matter . | . . . Retrieved Matter . | . . . Retrieved Components 1 | . 1 . Parts Scanalyzed . | . . . Part Schematics Acquired . | . . . Parts Damaged . | . . . Bothacking | -11 -10 -10 ------------ Run | Scr Mat Min Used RIF Installer . | . . . Robots Hacked . | . . . Non-combat . | . . . Combat . | . . . Robot Hacks Applied . | . . . Relay Couplers Released . | . . . Robots Rewired . | . . . Allies Hacked . | . . . Hacks Repelled . | . . . Allies | -11 -10 -10 -------- Run | Scr Mat Min Total Allies . | . . . Largest Group . | . . . Highest-Rated Group . | . . . Highest-Rated Ally . | . . . Total Orders . | . . . Ally Attacks . | . . . Total Damage . | . . . Kills . | . . . Allies Corrupted . | . . . Allies Melted . | . . . Intel | -11 -10 -10 ------- Run | Scr Mat Min Robot Analysis Total . | . . . Derelict Logs Recovered 1 | . . 1 Drone Launches . | . . . Drone Recoveries . | . . . Exploration | -11 -10 -10 ------------- Run | Scr Mat Min Turns Passed 1795 | 68 1459 268 Spaces Moved 842 | 46 674 122 Core 2 | 2 . . Treads . | . . . Legs 840 | 44 674 122 Wheels . | . . . Hover . | . . . Flight . | . . . Fastest Speed 50 | 50 120 200 Average Speed 181 | 116 183 200 Slowest Speed 200 | 120 200 200 Overloaded Moves . | . . . Propulsion Burnouts . | . . . Robots Hopped . | . . . Cave-ins Triggered . | . . . Exploration Rate (%) 46 | 4 96 39 Regions Visited 2 Branch Regions 1 Pre-discovered Areas . | . . . Known Exits Taken . | . . . Unknown Exits Taken 2 | 1 1 . Scrap Searched 2 | . . 2 Spaces Dug . | . . . Terrain Destroyed 1 | . . 1 Melee . | . . . Projectile 1 | . . 1 AOE . | . . . Terrain Rammed . | . . . Walls Destroyed . | . . . Machines Disabled . | . . . Actions | -11 -10 -10 --------- Run | Scr Mat Min Total 1016 | 57 820 139 Wait 61 | . 61 . Move 840 | 45 673 122 Hop . | . . . Pick Up 18 | 6 12 . Fast Attach 13 | 6 5 2 Attach 5 | . . 5 Detach 4 | . 1 3 Swap 10 | . 8 2 Drop 16 | . 16 . Fire 49 | . 44 5 Melee . | . . . Ram . | . . . Kick . | . . . Crush . | . . . Escape Stasis . | . . . Rewire . | . . . Trap . | . . . Miscellaneous . | . . . Route ------- -11/Scrapyard -10/Materials (discovered 4 exits: [*Mat x3] / [*Min]) -10/Mines (discovered 1 exit: [*Mat]) History --------- Turn | Location | Event 8 | -11/Scrapyard | Discovered new exit (range 15) 69 | -11/Scrapyard | Entered Materials 312 | -10/Materials | Build established: Mutant 689 | -10/Materials | Discovered new exit (range 3) 850 | -10/Materials | Discovered new exit (range 5) 1053 | -10/Materials | Discovered new exit (range 3) 1426 | -10/Materials | Discovered new exit (range 14) 1528 | -10/Materials | Entered Mines 1606 | -10/Mines | A weapon hastily lodged in a ceiling crevice suddenly fell to the ground 1654 | -10/Mines | Discovered new exit (range 7) 1702 | -10/Mines | Learned 4 Materials zone layouts 1761 | -10/Mines | Assembled infested the area 1764 | -10/Mines | Build established: Scavenger-Mutant 1766 | -10/Mines | Assisted by a Guerilla fighting off Assembled 1781 | -10/Mines | Core integrity fell below 50% 1793 | -10/Mines | Core integrity fell below 20% 1796 | -10/Mines | Destroyed by D-53 Grenadier with Mini Grenade Launcher Last Messages --------------- 01768_ D-53 Grenadier suffers critical hit (Destroy). 01768_ D-53 Grenadier knocked back. 01770_ as-43130 destroyed. 01771_ as-60039 destroyed. 01772_ BA-SBA(h) destroyed. 01772_ as-91785 destroyed. 01773_ as-58680 destroyed. 01773_ as-55480 destroyed. 01775_ The unstable cave ceiling collapses. 01778_ Grenade Launcher destroyed. 01778_ Laser Drill disabled. 01779_ The unstable cave ceiling collapses. 01781_ Aluminum Leg destroyed. 01782_ The unstable cave ceiling collapses. 01782_ Aluminum Leg destroyed. 01785_ The unstable cave ceiling collapses. 01788_ Ion Engine destroyed. 01790_ The unstable cave ceiling collapses. 01793_ System corrupted: Matter fused (-5). 01793_ The unstable cave ceiling collapses. Map ----- +----------------------------------------------------+ | ?????????????????????###### #### < #?????###?? | | ?????????????????????# #?????????? | | ????????????????????# #?????????? | | ???????????????????# ##### ## #?????????? | | ???????????????????# ?????# ## """#?????????? | | ???????????????????# ??????# ## """#?????????? | | ?????????????????? ???????# ## """#?????????? | | ????????????????? ???????? ## #?????????? | | ??????????????? ??????????######## ###?????????? | | ??????????????? ??????????????????# #???????????? | | ????????????????????????????######## #???????????? | | ???????????????? ??????????# #???????????? | | ???????????????# ??????????# ########???????????? | | ???????????????#" ??????????# #??????????????????? | | ???????????????# ??????????#*#??????????????????? | | ???????????????# ??????????# #??????????????????? | | ???????????????# ########### #??????????????????? | | ???????????????# #??????????????????? | | ??????????????##% ##### ##### #??????????????????? | | ????????????###; #???# ##### ##?????????????????? | | ???????????# #??# # ## #?????????????????? | | ??????????? # ## # ###???????????????? | | ????????### ##??????????????? | | ???????? # ##?????????????? | | ??????????# % #%% # #?????????????? | | ?????????? # d @ #?????????????? | | ????????????# d " #?????????????? | | ????????????## "" #?????????????? | | ????????????# ## """ ##?????????????? | | ???????????# ##?## ##??????????????? | | ??????????# ##???# #???????????????? | | ??????????# #?????# #???????????????? | | ??????????## ??????## #???????????????? | | ???????????## #???????#### ##???????????????? | | ????????????###????????????######????????????????? | | ?????????????????????????????????????????????????? | | | | | | | | | | | | | | | | | | | | | | | | | | | | | +----------------------------------------------------+ Best States ------------- Heat Dissipation 35 Energy Generation 10 Energy Capacity 250 Matter Stores 300 Matter Capacity 300 Sight Range 16 Terrain Scan Density 10 Evasion (%) 55 Recoil Reduction 2 Item Schematics ----------------- None Robot Schematics ------------------ None Fabricated ------------ Nothing Alien Tech Used ----------------- None Achievements -------------- None Challenges ------------ None Game ------ Seed EnergyReactionAnalyzer Manual? 0 Play Time 00:13:04 Cumulative 72.4 hours Start 2021.06.16 @ 18:08:10 End 2021.06.16 @ 18:28:14 Sessions 1 Manual Loads 0 Difficulty Rogue Special Mode None Game No. 66 Rogue 66 Adventurer 0 Explorer 0 Win Type - Total 2 Types 1/0/1/0/0/0/0/0/0 Lore% 53 Gallery% 55 Achievement% 48 Wizard Run 0 Options --------- ASCII 1 Keyboard 1 Movement Numpad Keybinds 0 Fullscreen 2 Font 18/SmallcapsGlow Map View 76x50 Tactical HUD 1 Map Filters NONE Filters NONE Steam 1 RUN: 23f87789-845d-42c9-ba09-1e159183b6ac